bitfinex-derivatives/quotes_SOLF0:USTF0_20251018
["timestamp","ask_amount","ask_price","bid_price","bid_amount"]
[1760771081736,3.65318607,187.55,187.37,86.08530374]
[1760771081926,2.69,187.54,187.37,86.08530374]
[1760771082226,74.6082,187.6,187.37,86.08530374]
[1760771082425,4.7985,187.51,187.37,86.08530374]
[1760771082625,2.69,187.5,187.37,86.08530374]
[1760771082827,3.65318607,187.54,187.37,86.08530374]
[1760771083035,2.69,187.46,187.37,86.08530374]
[1760771084227,2.69,187.51,187.37,86.08530374]
[1760771084531,2.69,187.51,187.38,45.84]
[1760771084732,2.69,187.51,187.37,90.88710374]
[1760771084924,7.4886,187.51,187.37,86.08530374]
[1760771085126,2.69,187.52,187.37,86.08530374]
[1760771085832,45.84,187.57,187.37,86.08530374]
[1760771085833,7.4891,187.49,187.37,86.08530374]
[1760771086022,2.69,187.49,187.37,86.08530374]
[1760771087027,4.7993,187.48,187.37,86.08530374]
[1760771087530,4.7997,187.46,187.37,86.08530374]
[1760771088826,4.9110336,187.62,187.38,45.8]
[1760771089033,2.69,187.61,187.44,3.65318607]
[1760771089333,2.69,187.62,187.44,4.8001]
[1760771089727,2.69,187.61,187.45,7.34]
[1760771089931,10.10786825,187.75,187.45,7.34]
[1760771089932,2.69,187.78,187.56,3.65318607]
[1760771090131,4.9110336,187.85,187.6,3.65318607]
[1760771090331,2.69,187.79,187.6,3.65318607]
[1760771090632,2.69,187.8,187.62,3.65318607]
[1760771090871,4.7922,187.76,187.58,3.65318607]
[1760771091039,2.69,187.75,187.59,7.22]
[1760771091229,4.9110336,187.91,187.6,8.96]
[1760771091435,4.9110336,187.91,187.5,74.6428]
[1760771091436,2.69,187.8,187.61,3.98]
[1760771091633,2.69,187.77,187.61,3.4]
[1760771091936,3.65318607,187.78,187.46,74.662]
[1760771092136,2.69,187.76,187.47,75.278]
[1760771092328,2.69,187.76,187.57,3.65318607]
[1760771092530,2.69,187.76,187.58,46.12]
[1760771092835,2.69,187.76,187.59,46.16]
[1760771093232,77.1743,187.91,187.64,3.65318607]
[1760771093536,0.92688773,187.88,187.65,100.16]
[1760771093733,0.92688773,187.88,187.65,62.0]
[1760771093734,2.69,187.78,187.65,62.0]
[1760771093936,2.69,187.78,187.62,46.18]
[1760771094134,2.69,187.78,187.61,46.18]
[1760771094331,7.4825,187.75,187.61,46.18]
[1760771094532,2.69,187.75,187.59,3.65318607]
[1760771094838,2.69,187.74,187.55,3.65318607]
[1760771095034,4.7935,187.71,187.56,3.14]
[1760771095534,4.7935,187.71,187.55,8.45038607]
[1760771095736,4.7935,187.71,187.57,4.7969]
[1760771096528,4.7935,187.71,187.58,15.48]
[1760771096936,2.69,187.74,187.59,3.65318607]
[1760771097137,4.9110336,187.93,187.7,3.65318607]
[1760771097138,7.6010336,187.93,187.7,3.65318607]
[1760771097333,2.69,187.93,187.71,3.14]
[1760771097534,2.69,187.93,187.74,4.7925]
[1760771097736,2.69,187.93,187.78,3.65318607]
[1760771097936,2.69,187.96,187.76,3.65318607]
[1760771098237,3.65318607,187.97,187.76,3.65318607]
[1760771098238,3.65318607,187.97,187.77,4.7917]
[1760771098448,3.65318607,187.93,187.74,89.33874734]
[1760771098634,10.99318607,188.04,187.75,46.26]
[1760771098635,2.69,187.9,187.75,46.26]
[1760771099137,7.4785,187.9,187.74,89.33874734]
[1760771099335,74.4568,187.98,187.74,89.33874734]
[1760771099336,74.466,187.96,187.74,89.33874734]
[1760771099640,3.65318607,187.9,187.74,89.33874734]
[1760771099837,3.65318607,187.9,187.66,141.81318607]
[1760771099838,3.65318607,187.86,187.66,141.81318607]
[1760771100154,3.65318607,187.9,187.66,141.81318607]
[1760771100155,2.69,187.81,187.66,138.16]
[1760771100338,7.4809,187.81,187.66,138.16]
[1760771100641,2.69,187.8,187.61,3.65318607]
[1760771100834,2.69,187.75,187.57,65.65318607]
[1760771101136,2.69,187.77,187.57,49.95318607]
[1760771101344,2.69,187.77,187.53,3.65318607]
[1760771101345,2.69,187.68,187.53,3.65318607]
[1760771101640,2.69,187.65,187.47,3.65318607]
[1760771102433,74.5393,187.77,187.55,3.65318607]
[1760771102434,2.69,187.73,187.55,3.65318607]
[1760771102839,3.65318607,187.81,187.59,3.65318607]
[1760771103136,2.69,187.83,187.59,3.65318607]
[1760771103340,2.69,187.76,187.56,3.18]
[1760771103536,2.69,187.76,187.53,9.97218119]
[1760771103537,2.69,187.74,187.57,11.42]
[1760771104131,2.69,187.74,187.52,9.97218119]
[1760771104132,2.68,187.72,187.55,4.7971]
[1760771104337,2.68,187.79,187.53,108.42]
[1760771104533,2.68,187.74,187.53,108.42]
[1760771104837,7.4726,187.74,187.54,4.7976]
[1760771105031,2.68,187.74,187.53,108.44]
[1760771105339,2.68,187.71,187.53,108.44]
[1760771105540,2.68,187.74,187.47,9.97218119]
[1760771105737,9.97218119,187.75,187.48,8.66]
[1760771105932,2.68,187.73,187.48,83.3109]
[1760771106138,2.68,187.73,187.52,9.97218119]
[1760771106639,2.68,187.73,187.53,46.44]
[1760771106832,2.68,187.73,187.54,46.44]
[1760771107039,2.68,187.73,187.57,9.97218119]
[1760771107342,12.31218119,187.85,187.57,9.97218119]
[1760771107536,2.68,187.79,187.63,4.7951]
[1760771108437,2.68,187.79,187.62,9.97218119]
[1760771108641,2.68,187.79,187.63,62.0]
[1760771108843,2.68,187.88,187.63,62.0]
[1760771109141,2.68,187.83,187.64,51.2348]
[1760771109441,0.92702354,187.89,187.57,9.97218119]
[1760771109442,9.97218119,187.85,187.57,9.97218119]
[1760771109745,4.7895,187.86,187.68,4.7939]
[1760771109941,2.68,187.85,187.68,12.84]
[1760771110441,2.68,187.85,187.67,9.97218119]
[1760771110641,2.68,187.85,187.68,46.46]
[1760771111053,138.1,187.97,187.72,9.97218119]
[1760771111054,2.83,187.93,187.72,9.97218119]
[1760771111346,2.83,187.93,187.78,4.7913]
[1760771111548,2.83,187.93,187.77,46.46]
[1760771111743,2.83,187.93,187.8,4.7908]
[1760771111945,2.83,187.93,187.77,56.43218119]
[1760771112245,9.97218119,188.09,187.82,9.97218119]
[1760771112446,2.83,188.08,187.87,4.789]
[1760771112644,30.25810712,188.09,187.87,4.789]
[1760771112841,30.25810712,188.09,187.82,9.97218119]
[1760771113043,2.83,188.03,187.82,8.68]
[1760771113246,74.429,188.05,187.65,222.2334]
[1760771113247,2.83,187.98,187.73,101.73834381]
[1760771113442,9.97218119,187.99,187.74,46.48]
[1760771113661,9.97218119,187.96,187.73,89.55834381]
[1760771114250,2.83,187.9,187.73,89.55834381]
[1760771114445,2.83,187.95,187.73,89.55834381]
[1760771114848,2.83,187.87,187.73,89.55834381]
[1760771115349,2.83,187.87,187.74,46.48]
[1760771115540,2.83,187.87,187.73,94.35104381]
[1760771115541,2.83,187.87,187.73,89.55834381]
[1760771115747,2.83,187.87,187.74,46.48]
[1760771115949,2.83,187.87,187.75,4.7921]
[1760771116145,2.83,187.87,187.73,151.55834381]
[1760771116344,2.83,187.87,187.74,46.46]
[1760771116549,2.83,187.87,187.73,94.35094381]
[1760771116749,2.83,187.87,187.74,46.46]
[1760771117254,2.83,187.87,187.73,89.55834381]
[1760771117454,2.83,187.93,187.73,89.55834381]
[1760771117654,9.97218119,187.94,187.73,89.55834381]
[1760771117655,2.83,187.89,187.73,89.55834381]
[1760771117855,2.83,187.96,187.73,89.55834381]
[1760771118056,9.97218119,187.94,187.73,89.55834381]
[1760771118249,2.83,187.86,187.73,89.55834381]
[1760771118554,2.83,187.86,187.73,94.35094381]
[1760771118762,4.7885,187.9,187.73,89.55834381]
[1760771118957,4.7885,187.9,187.74,4.7924]
[1760771119150,2.83,187.89,187.74,51.2924]
[1760771119349,4.789,187.88,187.73,89.55834381]
[1760771119655,2.83,187.89,187.74,46.5]
[1760771119953,7.6188,187.89,187.74,46.5]
[1760771120454,7.6188,187.89,187.75,4.7922]
[1760771120850,2.83,187.86,187.73,136.05834381]
[1760771121056,2.83,187.86,187.73,136.03834381]
[1760771121250,4.7897,187.85,187.73,89.55834381]
[1760771122050,4.7903,187.83,187.73,89.55834381]
[1760771122250,78.23301532,187.94,187.65,148.03218119]
[1760771122251,84.46118119,187.9,187.65,148.03218119]
[1760771122447,3.76203471,187.89,187.62,46.48]
[1760771122651,4.791,187.8,187.64,4.795]
[1760771122857,3.76203471,187.89,187.6,9.97218119]
[1760771122858,46.48,187.85,187.6,9.97218119]
[1760771123058,2.83,187.83,187.6,18.67218119]
[1760771123255,2.83,187.78,187.63,4.7952]
[1760771123751,4.7918,187.77,187.62,27.88]
[1760771123958,2.83,187.77,187.6,14.76818119]
[1760771124156,2.83,187.77,187.6,9.97218119]
[1760771124350,2.83,187.77,187.6,71.97218119]
[1760771124552,4.7926,187.74,187.6,9.97218119]
[1760771124953,2.83,187.77,187.6,9.97218119]
[1760771125460,2.83,187.77,187.63,3.63220522]
[1760771126263,2.83,187.77,187.64,4.795]
[1760771127261,7.6218,187.77,187.64,4.795]
[1760771127461,7.6218,187.77,187.63,3.63220522]
[1760771127861,2.83,187.82,187.67,8.42640522]
[1760771128366,5.58,187.84,187.67,8.42640522]
[1760771128367,5.58,187.84,187.67,3.63220522]
[1760771128557,2.83,187.83,187.64,33.0148]
[1760771128765,5.58,187.84,187.64,8.42700522]
[1760771129078,2.83,187.83,187.64,8.42700522]
[1760771129257,5.58,187.84,187.64,8.42700522]
[1760771129463,2.83,187.79,187.66,4.7945]
[1760771129766,2.83,187.79,187.63,5.90055055]
[1760771129962,2.83,187.79,187.68,4.794]
[1760771130770,2.83,187.79,187.65,39.86]
[1760771130771,2.83,187.87,187.65,39.86]
[1760771130956,3.78108449,187.89,187.66,62.0]
[1760771131158,14.94108449,187.9,187.66,62.0]
[1760771131556,2.83,187.84,187.68,5.90055055]
[1760771131763,2.83,187.84,187.69,46.44]
[1760771132166,2.83,187.84,187.73,4.7927]
[1760771133572,7.62,187.84,187.68,5.90055055]
[1760771133870,7.62,187.84,187.69,46.42]
[1760771134065,4.7905,187.82,187.69,4.7935]
[1760771134270,4.7905,187.82,187.68,5.90055055]
[1760771134670,2.83,187.84,187.68,5.90055055]
[1760771134970,3.78108449,187.89,187.73,5.90055055]
[1760771135265,2.83,187.94,187.78,5.90055055]
[1760771135471,2.83,187.94,187.79,46.44]
[1760771136061,2.83,188.01,187.83,5.90055055]
[1760771136673,17.12020545,188.07,187.83,5.90055055]
[1760771136674,6.64125885,188.06,187.83,5.90055055]
[1760771137173,2.83,188.06,187.88,5.90055055]
[1760771137370,2.83,188.06,187.94,4.7872]
[1760771137568,2.83,188.06,187.95,46.48]
[1760771137769,4.7834,188.1,187.96,4.7868]
[1760771137975,4.80020545,188.14,187.95,46.48]
[1760771137976,4.7841,188.07,187.95,46.48]
[1760771138174,4.7841,188.07,187.94,46.46]
[1760771138375,2.83,188.09,187.94,46.46]
[1760771138873,2.83,188.09,187.95,5.90055055]
[1760771139375,2.83,188.17,187.94,51.2873]
[1760771139567,4.80020545,188.16,187.94,4.7873]
[1760771139771,10.700756,188.17,187.94,4.7873]
[1760771140071,2.83,188.13,187.91,4.788]
[1760771140270,2.83,188.1,187.88,9.32]
[1760771140468,4.80020545,188.11,187.75,74.5448]
[1760771140469,2.83,188.03,187.75,74.5448]
[1760771140672,2.83,188.09,187.84,5.90055055]
[1760771140871,6.69971533,188.13,187.89,5.90055055]
[1760771140872,10.700756,188.13,187.89,5.90055055]
[1760771141071,5.90055055,188.13,187.89,77.84905055]
[1760771141406,2.72,188.11,187.89,5.90055055]
[1760771141581,2.72,188.06,187.89,5.90055055]
[1760771142279,2.72,188.06,187.94,4.7872]
[1760771142478,2.72,188.06,187.89,5.90055055]
[1760771142978,2.72,188.11,187.89,5.90055055]
[1760771143175,4.80020545,188.11,187.89,5.90055055]
[1760771143378,10.700756,188.12,187.89,5.90055055]
[1760771143681,2.48,188.14,187.89,5.90055055]
[1760771143887,2.72,188.13,187.89,5.90055055]
[1760771144078,2.72,188.13,187.97,4.7866]
[1760771144277,0.9255073,188.2,188.0,5.90055055]
[1760771144584,2.72,188.23,188.05,5.90055055]
[1760771145578,2.72,188.23,188.09,4.7834]
[1760771145781,2.72,188.23,188.1,5.90055055]
[1760771146183,8.18490465,188.32,188.11,4.7829]
[1760771146385,2.72,188.31,188.11,4.7829]
[1760771146598,8.18490465,188.32,188.11,4.7829]
[1760771146780,2.72,188.31,188.07,5.90055055]
[1760771146981,82.50550465,188.32,188.07,5.90055055]
[1760771147286,7.52020545,188.31,188.06,5.90055055]
[1760771147484,2.72,188.31,188.11,5.90055055]
[1760771147781,2.72,188.26,188.12,62.0]
[1760771148086,47.92476947,188.32,188.09,4.7834]
[1760771148383,2.72,188.25,188.08,5.90055055]
[1760771148884,4.7803,188.22,188.08,5.90055055]
[1760771149082,2.72,188.26,188.03,5.90055055]
[1760771149287,2.72,188.26,187.99,5.90055055]
[1760771149784,2.72,188.24,188.04,5.90055055]
[1760771149987,4.7806,188.21,188.07,4.7839]
[1760771150283,4.7806,188.21,188.04,5.90055055]
[1760771150284,2.72,188.2,188.04,5.90055055]
[1760771150884,2.72,188.2,188.06,4.7841]
[1760771151984,7.5009,188.2,188.06,4.7841]
[1760771152489,2.72,188.2,188.06,4.7841]
[1760771153592,2.72,188.2,188.03,4.7849]
[1760771153883,74.3609,188.22,187.97,62.0]
[1760771154081,2.72,188.19,187.93,47.04]
[1760771154289,2.72,188.11,187.97,4.7864]
[1760771154687,80.28865055,188.15,187.91,4.788]
[1760771154888,5.90055055,188.15,187.91,4.788]
[1760771155087,5.90055055,188.15,187.8,47.02]
[1760771155088,47.04,188.14,187.88,5.90055055]
[1760771155288,2.72,188.13,187.88,5.90055055]
[1760771155486,4.7844,188.06,187.88,5.90055055]
[1760771155985,4.7848,188.04,187.92,4.7878]
[1760771156184,80.28395055,188.16,187.88,5.90055055]
[1760771156185,5.90055055,188.11,187.88,5.90055055]
[1760771156379,13.58,188.1,187.88,5.90055055]
[1760771156583,2.72,188.09,187.88,5.90055055]
[1760771156783,2.72,188.02,187.9,4.7883]
[1760771156983,2.72,188.02,187.85,5.90055055]
[1760771157195,2.72,188.02,187.86,62.0]
[1760771158487,2.72,188.02,187.9,5.90055055]
[1760771158994,2.72,188.02,187.9,10.68875055]
[1760771159191,2.72,188.02,187.9,4.7882]
[1760771159590,7.5054,188.02,187.87,4.7889]
[1760771159795,5.90055055,188.08,187.87,4.7889]
[1760771159993,5.90055055,188.08,187.85,5.90055055]
[1760771160487,2.72,188.06,187.85,5.90055055]
[1760771160687,2.72,188.04,187.89,4.7886]
[1760771160889,5.90055055,188.08,187.89,4.7886]
[1760771161188,4.7857,188.01,187.86,4.7892]
[1760771161392,46.72,188.07,187.83,5.90055055]
[1760771161587,2.72,188.02,187.78,5.90055055]
[1760771161789,2.72,187.96,187.76,11.16055055]
[1760771161989,2.72,187.96,187.76,5.90055055]
[1760771162691,407.0,188.08,187.8,74.5254]
[1760771162887,2.72,188.07,187.86,5.90055055]
[1760771163186,47.02,188.1,187.87,62.0]
[1760771163593,4.7846,188.05,187.9,4.7882]
[1760771163790,2.72,188.09,187.9,4.7882]
[1760771163989,2.72,188.09,187.86,5.90055055]
[1760771163990,5.90055055,188.07,187.86,5.90055055]
[1760771164189,2.73,188.0,187.87,4.7889]
[1760771164387,5.90055055,188.07,187.81,5.90055055]
[1760771164583,2.73,188.06,187.79,47.04]
[1760771164797,2.73,188.01,187.84,4.7897]
[1760771164993,5.90055055,188.02,187.84,4.7897]
[1760771165189,2.73,188.01,187.84,4.7897]
[1760771166099,2.73,187.96,187.84,4.7897]
[1760771166295,2.73,187.96,187.79,47.04]
[1760771166595,2.73,187.96,187.78,47.06]
[1760771166794,2.73,187.96,187.84,4.7898]
[1760771167395,2.73,188.01,187.84,4.7898]
[1760771167585,47.04,188.0,187.84,4.7898]
[1760771167994,47.04,188.0,187.77,62.0]
[1760771167995,47.04,188.0,187.81,4.7904]
[1760771168196,2.73,187.99,187.81,4.7904]
[1760771168388,4.788,187.92,187.79,4.791]
[1760771168690,5.90055055,187.97,187.7,5.90055055]
[1760771168897,5.90055055,187.97,187.67,5.90055055]
[1760771169090,5.90055055,187.92,187.66,5.90055055]
[1760771169287,5.28,187.91,187.66,5.90055055]
[1760771169490,2.73,187.86,187.72,4.7928]
[1760771169687,2.73,187.86,187.7,7.52904462]
[1760771170291,7.5194,187.86,187.74,4.7924]
[1760771170594,8.94,187.9,187.66,7.52904462]
[1760771170794,2.73,187.89,187.66,7.52904462]
[1760771171002,8.94,187.9,187.68,4.7937]
[1760771171003,2.77,187.81,187.68,4.7937]
[1760771171196,2.77,187.81,187.66,69.52904462]
[1760771171593,2.77,187.81,187.7,4.7934]
[1760771171790,2.77,187.81,187.66,69.52904462]
[1760771172001,34.69,187.89,187.68,4.7937]
[1760771172297,7.52904462,187.86,187.63,7.52904462]
[1760771172491,7.52904462,187.86,187.54,147.4348]
[1760771172492,4.7917,187.77,187.61,4.7956]
[1760771172694,2.77,187.76,187.6,7.52904462]
[1760771172888,2.77,187.76,187.64,7.52904462]
[1760771173695,4.7925,187.74,187.64,7.52904462]
[1760771174292,2.77,187.76,187.64,7.52904462]
[1760771174696,4.7923,187.75,187.64,7.52904462]
[1760771175399,2.77,187.74,187.64,7.52904462]
[1760771175599,2.77,187.74,187.6,7.52904462]
[1760771176995,2.77,187.74,187.65,4.7946]
[1760771177902,7.5612,187.79,187.65,4.7946]
[1760771179297,2.77,187.85,187.7,7.52904462]
[1760771179498,7.52904462,187.93,187.7,7.52904462]
[1760771180003,7.52904462,187.93,187.66,7.52904462]
[1760771180004,2.77,187.83,187.66,7.52904462]
[1760771180504,2.77,187.83,187.69,4.7935]
[1760771181402,2.77,187.83,187.71,4.793]
[1760771182001,2.77,187.83,187.73,4.7926]
[1760771182505,2.77,187.83,187.75,4.7921]
[1760771182803,2.77,187.89,187.68,7.52904462]
[1760771182997,2.77,187.91,187.68,7.52904462]
[1760771183203,32.28,187.92,187.78,4.7914]
[1760771183409,2.77,187.91,187.78,4.7914]
[1760771183605,2.77,187.9,187.78,4.7914]
[1760771183906,2.77,187.89,187.78,4.7914]
[1760771184112,2.77,187.89,187.8,4.7908]
[1760771186098,4.7879,187.92,187.8,4.7908]
[1760771186300,40.32,187.93,187.65,7.52904462]
[1760771186301,7.52904462,187.86,187.65,7.52904462]
[1760771186501,7.52904462,187.82,187.61,7.52904462]
[1760771186809,7.52904462,187.82,187.54,137.84]
[1760771186810,4.7915,187.78,187.65,4.7945]
[1760771187105,4.7915,187.78,187.57,7.52904462]
[1760771187106,16.36,187.78,187.57,7.52904462]
[1760771187304,2.77,187.74,187.63,4.7952]
[1760771187809,2.77,187.74,187.65,4.7947]
[1760771189017,2.77,187.74,187.52,7.52904462]
[1760771189314,2.77,187.74,187.53,62.0]
[1760771189499,7.52904462,187.75,187.53,62.0]
[1760771189706,7.5625,187.74,187.61,4.7955]
[1760771190008,2.77,187.72,187.61,4.7955]
[1760771190410,7.52904462,187.75,187.58,4.7963]
[1760771190611,7.52904462,187.71,187.53,62.0]
[1760771190811,2.77,187.7,187.53,62.0]
[1760771191209,2.77,187.7,187.48,121.5716]
[1760771191210,7.52904462,187.71,187.48,7.52904462]
[1760771191410,2.77,187.67,187.5,4.58382461]
[1760771191807,2.77,187.67,187.59,4.7962]
[1760771192006,2.77,187.67,187.54,4.58382461]
[1760771192204,2.77,187.67,187.5,4.58382461]
[1760771192405,2.77,187.66,187.49,4.58382461]
[1760771193014,2.77,187.65,187.52,4.7979]
[1760771193212,2.77,187.67,187.52,4.7979]
[1760771193515,4.7955,187.62,187.49,4.7986]
[1760771193712,4.58382461,187.64,187.43,4.58382461]
[1760771193912,2.77,187.59,187.41,4.58382461]
[1760771194114,4.7965,187.58,187.46,4.7994]
[1760771194321,4.7965,187.58,187.41,66.58382461]
[1760771194514,4.58382461,187.56,187.24,9.6103]
[1760771194714,79.16542461,187.66,187.34,4.58382461]
[1760771194715,2.77,187.51,187.34,4.58382461]
[1760771195216,2.77,187.51,187.37,90.88710374]
[1760771195912,2.77,187.51,187.37,86.08530374]
[1760771195913,4.58382461,187.48,187.37,86.08530374]
[1760771196125,2.77,187.47,187.37,86.08530374]
[1760771196508,4.58382461,187.48,187.37,86.08530374]
[1760771196717,45.34,187.53,187.14,212.8075]
[1760771196718,2.77,187.43,187.25,4.58382461]
[1760771196914,2.77,187.43,187.29,4.58382461]
[1760771197313,2.77,187.49,187.31,4.58382461]
[1760771197615,2.77,187.49,187.36,4.802]
[1760771197819,2.77,187.49,187.31,66.58382461]
[1760771198017,2.77,187.49,187.32,4.58382461]
[1760771198209,2.77,187.47,187.31,62.0]
[1760771199012,2.77,187.47,187.28,4.58382461]
[1760771199214,7.35382461,187.47,187.28,4.58382461]
[1760771199619,2.77,187.47,187.34,4.8025]
[1760771199911,2.77,187.47,187.32,4.58382461]
[1760771201106,2.77,187.47,187.38,4.8014]
[1760771201718,2.61,187.52,187.4,4.801]
[1760771203506,4.58382461,187.53,187.37,4.8018]
[1760771203910,2.61,187.51,187.37,4.8018]
[1760771204117,2.61,187.51,187.39,4.8013]
[1760771204417,2.61,187.51,187.33,62.0]
[1760771204613,2.61,187.51,187.38,4.8016]
[1760771204813,2.61,187.51,187.33,62.0]
[1760771205113,2.61,187.51,187.37,4.58382461]
[1760771205324,2.61,187.57,187.41,4.58382461]
[1760771206520,2.61,187.56,187.41,4.58382461]
[1760771208119,2.61,187.56,187.47,4.7993]
[1760771209118,2.61,187.56,187.41,4.58382461]
[1760771209119,2.61,187.56,187.44,4.7999]
[1760771209322,2.61,187.57,187.44,4.7999]
[1760771209619,7.4069,187.57,187.41,4.58382461]
[1760771209916,22.24,187.67,187.44,4.58382461]
[1760771210110,2.61,187.63,187.42,74.6769]
[1760771210318,2.61,187.63,187.54,4.7974]
[1760771210521,2.61,187.63,187.48,4.58382461]
[1760771210917,22.24,187.67,187.58,4.7964]
[1760771212221,22.24,187.67,187.6,4.7958]
[1760771212723,2.61,187.66,187.52,4.58382461]
[1760771212917,2.61,187.66,187.53,62.0]
[1760771213113,2.61,187.66,187.56,4.7969]
[1760771213910,2.61,187.66,187.58,4.7963]
[1760771216023,2.61,187.66,187.6,4.7959]
[1760771217824,2.61,187.66,187.62,4.7954]
[1760771218024,22.24,187.67,187.62,4.7954]
[1760771218521,24.85,187.67,187.62,4.7954]
[1760771220525,22.24,187.67,187.62,4.7954]
[1760771220725,24.85,187.67,187.62,4.7954]
[1760771221421,4.58382461,187.72,187.53,62.0]
[1760771221422,4.58382461,187.72,187.64,4.7949]
[1760771221623,2.61,187.71,187.64,4.7949]
[1760771222021,4.58382461,187.74,187.56,4.58382461]
[1760771222022,2.61,187.73,187.66,4.7945]
[1760771222233,2.61,187.73,187.56,4.58382461]
[1760771222621,46.62,187.75,187.6,4.58382461]
[1760771222823,46.62,187.75,187.6,51.18382461]
[1760771223019,2.61,187.78,187.6,51.18382461]
[1760771223829,2.61,187.78,187.7,4.7934]
[1760771224427,2.57,187.86,187.7,1.06]
[1760771224724,2.57,187.86,187.63,158.95408615]
[1760771224725,6.02,187.97,187.75,4.58382461]
[1760771224931,2.57,187.93,187.76,4.58382461]
[1760771225235,2.57,187.9,187.76,4.58382461]
[1760771225426,4.58382461,187.91,187.72,62.0]
[1760771225625,2.57,187.89,187.75,4.792]
[1760771225826,2.57,187.89,187.72,62.0]
[1760771226137,2.57,187.89,187.81,4.7906]
[1760771226723,4.58382461,187.91,187.72,66.58382461]
[1760771226927,2.57,187.9,187.72,113.20382461]
[1760771227123,4.58382461,187.91,187.74,4.7924]
[1760771227430,2.57,187.84,187.74,4.7924]
[1760771227930,2.57,187.8,187.66,4.58382461]
[1760771228427,2.57,187.8,187.7,4.7934]
[1760771228834,2.57,187.8,187.66,4.58382461]
[1760771229028,2.57,187.82,187.67,4.794]
[1760771229232,2.57,187.8,187.67,4.794]
[1760771229432,2.57,187.8,187.63,84.36468615]
[1760771229433,2.57,187.8,187.71,4.7932]
[1760771229637,2.57,187.8,187.66,4.58382461]
[1760771230525,2.57,187.8,187.7,4.58382461]
[1760771230932,13.3,187.85,187.7,4.58382461]
[1760771231134,13.3,187.85,187.74,4.58382461]
[1760771231335,13.3,187.85,187.63,168.54798615]
[1760771231336,13.3,187.85,187.7,4.58382461]
[1760771232623,13.3,187.85,187.66,51.14382461]
[1760771232624,2.62,187.84,187.66,51.14382461]
[1760771232834,4.7904,187.83,187.72,4.7927]
[1760771233030,2.62,187.82,187.72,4.7927]
[1760771233648,2.62,187.82,187.74,4.7923]
[1760771234132,2.62,187.94,187.73,4.58382461]
[1760771234336,2.62,187.94,187.77,4.58382461]
[1760771234539,2.62,187.99,187.85,4.58382461]
[1760771234728,2.62,187.99,187.87,4.7891]
[1760771235129,2.62,187.99,187.85,4.58382461]
[1760771235335,2.62,188.09,187.89,4.58382461]
[1760771235837,2.62,188.06,187.89,4.58382461]
[1760771236237,2.62,188.06,187.95,4.787]
[1760771236738,2.62,188.02,187.89,4.7885]
[1760771237139,2.62,188.02,187.84,4.58382461]
[1760771237338,2.62,188.02,187.91,4.788]
[1760771239639,2.62,188.01,187.88,4.7887]
[1760771240140,2.62,188.01,187.82,4.58382461]
[1760771240141,2.62,188.06,187.87,4.58382461]
[1760771240331,2.62,188.06,187.91,4.58382461]
[1760771240537,2.62,188.06,187.95,4.58382461]
[1760771240741,4.58382461,188.21,187.95,4.58382461]
[1760771240742,2.62,188.13,187.95,4.58382461]
[1760771240936,4.58382461,188.1,187.91,4.58382461]
[1760771241133,7.4036,188.09,187.94,4.7872]
[1760771241335,4.58382461,188.1,187.77,79.11872461]
[1760771241336,2.62,188.05,187.84,8.3]